{"text_format":"3","workbook":"xlsx","n_sheets":1,"sheets":["Quadro de horários anual"],"not_rendered":{"defined_names":2},"read":"whole","date_system":"1900"}

{"sheet":"Quadro de horários anual","index":0,"n_rows":140,"n_cols":12,"rows_kept":140,"merged":[[0,1,1,11],[2,6,2,7],[2,8,2,9],[5,1,5,11],[39,1,39,11],[73,1,73,11],[107,1,107,11]]}
[null,"Cartão de ponto de funcionário"]
[]
[null,"Nome do funcionário:",null,"Email:",null,null,"Totais acumulados no ano:"]
[null,"Gerente:",null,"Telefone:",null,null,"Horas normais:",{"$f":"SUM(C16,C27,C38,C50,C61,C72,C84,C95,C106,C118,C129,C140)","v":0},"Horas extras:",{"$f":"SUM(F16,F27,F38,F50,F61,F72,F84,F95,F106,F118,F129,F140)","v":0},"Total:",{"$f":"SUM(H4:J4)","v":0}]
[]
[null,"Janeiro, fevereiro, março      Cartão de ponto do funcionário: Diário, semanal, mensal, anual"]
[null,"Janeiro","Semana 1","Horas extras","Semana 2","Horas extras ","Semana 3","Horas extras  ","Semana 4","Horas extras   ","Semana 5","Horas extras    "]
[null,"Segunda"]
[null,"Terça-feira"]
[null,"Quarta-feira"]
[null,"Quinta-feira"]
[null,"Sexta-feira"]
[null,"Sábado"]
[null,"Domingo"]
[null,"Total de horas semanal",{"$f":"SUBTOTAL(109,Janeiro[Semana 1])","v":0},{"$f":"SUBTOTAL(109,Janeiro[Horas extras])","v":0},{"$f":"SUBTOTAL(109,Janeiro[Semana 2])","v":0},{"$f":"SUBTOTAL(109,Janeiro[[Horas extras ]])","v":0},{"$f":"SUBTOTAL(109,Janeiro[Semana 3])","v":0},{"$f":"SUBTOTAL(109,Janeiro[[Horas extras  ]])","v":0},{"$f":"SUBTOTAL(109,Janeiro[Semana 4])","v":0},{"$f":"SUBTOTAL(109,Janeiro[[Horas extras   ]])","v":0},{"$f":"SUBTOTAL(109,Janeiro[Semana 5])","v":0},{"$f":"SUBTOTAL(109,Janeiro[[Horas extras    ]])","v":0}]
[null,"Total de janeiro: Horas normais",{"$f":"SUM(Janeiro[[#Totals],[Semana 1]],Janeiro[[#Totals],[Semana 2]],Janeiro[[#Totals],[Semana 3]],Janeiro[[#Totals],[Semana 4]],Janeiro[[#Totals],[Semana 5]])","v":0},"Total de janeiro: Horas extras",null,{"$f":"SUM(Janeiro[[#Totals],[Horas extras]],Janeiro[[#Totals],[Horas extras ]],Janeiro[[#Totals],[Horas extras  ]],Janeiro[[#Totals],[Horas extras   ]],Janeiro[[#Totals],[Horas extras    ]])","v":0}]
[]
[null,"Fevereiro","Semana 1","Horas extras","Semana 2","Horas extras ","Semana 3","Horas extras  ","Semana 4","Horas extras   ","Semana 5","Horas extras    "]
[null,"Segunda"]
[null,"Terça-feira"]
[null,"Quarta-feira"]
[null,"Quinta-feira"]
[null,"Sexta-feira"]
[null,"Sábado"]
[null,"Domingo"]
[null,"Total de horas semanal",{"$f":"SUBTOTAL(109,Fevereiro[Semana 1])","v":0},{"$f":"SUBTOTAL(109,Fevereiro[Horas extras])","v":0},{"$f":"SUBTOTAL(109,Fevereiro[Semana 2])","v":0},{"$f":"SUBTOTAL(109,Fevereiro[[Horas extras ]])","v":0},{"$f":"SUBTOTAL(109,Fevereiro[Semana 3])","v":0},{"$f":"SUBTOTAL(109,Fevereiro[[Horas extras  ]])","v":0},{"$f":"SUBTOTAL(109,Fevereiro[Semana 4])","v":0},{"$f":"SUBTOTAL(109,Fevereiro[[Horas extras   ]])","v":0},{"$f":"SUBTOTAL(109,Fevereiro[Semana 5])","v":0},{"$f":"SUBTOTAL(109,Fevereiro[[Horas extras    ]])","v":0}]
[null,"Total de fevereiro: Horas normais",{"$f":"SUM(Fevereiro[[#Totals],[Semana 1]],Fevereiro[[#Totals],[Semana 2]],Fevereiro[[#Totals],[Semana 3]],Fevereiro[[#Totals],[Semana 4]],Fevereiro[[#Totals],[Semana 5]])","v":0},"Total de fevereiro: Horas extras",null,{"$f":"SUM(Fevereiro[[#Totals],[Horas extras]],Fevereiro[[#Totals],[Horas extras ]],Fevereiro[[#Totals],[Horas extras  ]],Fevereiro[[#Totals],[Horas extras   ]],Fevereiro[[#Totals],[Horas extras    ]])","v":0}]
[]
[null,"Março","Semana 1","Horas extras","Semana 2","Horas extras ","Semana 3","Horas extras  ","Semana 4","Horas extras   ","Semana 5","Horas extras    "]
[null,"Segunda"]
[null,"Terça-feira"]
[null,"Quarta-feira"]
[null,"Quinta-feira"]
[null,"Sexta-feira"]
[null,"Sábado"]
[null,"Domingo"]
[null,"Total de horas semanal",{"$f":"SUBTOTAL(109,Março[Semana 1])","v":0},{"$f":"SUBTOTAL(109,Março[Horas extras])","v":0},{"$f":"SUBTOTAL(109,Março[Semana 2])","v":0},{"$f":"SUBTOTAL(109,Março[[Horas extras ]])","v":0},{"$f":"SUBTOTAL(109,Março[Semana 3])","v":0},{"$f":"SUBTOTAL(109,Março[[Horas extras  ]])","v":0},{"$f":"SUBTOTAL(109,Março[Semana 4])","v":0},{"$f":"SUBTOTAL(109,Março[[Horas extras   ]])","v":0},{"$f":"SUBTOTAL(109,Março[Semana 5])","v":0},{"$f":"SUBTOTAL(109,Março[[Horas extras    ]])","v":0}]
[null,"Total de março: Horas normais",{"$f":"SUM(Março[[#Totals],[Semana 1]],Março[[#Totals],[Semana 2]],Março[[#Totals],[Semana 3]],Março[[#Totals],[Semana 4]],Março[[#Totals],[Semana 5]])","v":0},"Total de março: Horas extras",null,{"$f":"SUM(Março[[#Totals],[Horas extras]],Março[[#Totals],[Horas extras ]],Março[[#Totals],[Horas extras  ]],Março[[#Totals],[Horas extras   ]],Março[[#Totals],[Horas extras    ]])","v":0}]
[]
[null,"Abril, maio, junho      Cartão de ponto do funcionário: Diário, semanal, mensal, anual"]
[null,"Abril","Semana 1","Horas extras","Semana 2","Horas extras ","Semana 3","Horas extras  ","Semana 4","Horas extras   ","Semana 5","Horas extras    "]
[null,"Segunda"]
[null,"Terça-feira"]
[null,"Quarta-feira"]
[null,"Quinta-feira"]
[null,"Sexta-feira"]
[null,"Sábado"]
[null,"Domingo"]
[null,"Total de horas semanal",{"$f":"SUBTOTAL(109,Abril[Semana 1])","v":0},{"$f":"SUBTOTAL(109,Abril[Horas extras])","v":0},{"$f":"SUBTOTAL(109,Abril[Semana 2])","v":0},{"$f":"SUBTOTAL(109,Abril[[Horas extras ]])","v":0},{"$f":"SUBTOTAL(109,Abril[Semana 3])","v":0},{"$f":"SUBTOTAL(109,Abril[[Horas extras  ]])","v":0},{"$f":"SUBTOTAL(109,Abril[Semana 4])","v":0},{"$f":"SUBTOTAL(109,Abril[[Horas extras   ]])","v":0},{"$f":"SUBTOTAL(109,Abril[Semana 5])","v":0},{"$f":"SUBTOTAL(109,Abril[[Horas extras    ]])","v":0}]
[null,"Total de abril: Horas normais",{"$f":"SUM(Abril[[#Totals],[Semana 1]],Abril[[#Totals],[Semana 2]],Abril[[#Totals],[Semana 3]],Abril[[#Totals],[Semana 4]],Abril[[#Totals],[Semana 5]])","v":0},"Total de abril: Horas extras",null,{"$f":"SUM(Abril[[#Totals],[Horas extras]],Abril[[#Totals],[Horas extras ]],Abril[[#Totals],[Horas extras  ]],Abril[[#Totals],[Horas extras   ]],Abril[[#Totals],[Horas extras    ]])","v":0}]
[]
[null,"Maio","Semana 1","Horas extras","Semana 2","Horas extras ","Semana 3","Horas extras  ","Semana 4","Horas extras   ","Semana 5","Horas extras    "]
[null,"Segunda"]
[null,"Terça-feira"]
[null,"Quarta-feira"]
[null,"Quinta-feira"]
[null,"Sexta-feira"]
[null,"Sábado"]
[null,"Domingo"]
[null,"Total de horas semanal",{"$f":"SUBTOTAL(109,Maio[Semana 1])","v":0},{"$f":"SUBTOTAL(109,Maio[Horas extras])","v":0},{"$f":"SUBTOTAL(109,Maio[Semana 2])","v":0},{"$f":"SUBTOTAL(109,Maio[[Horas extras ]])","v":0},{"$f":"SUBTOTAL(109,Maio[Semana 3])","v":0},{"$f":"SUBTOTAL(109,Maio[[Horas extras  ]])","v":0},{"$f":"SUBTOTAL(109,Maio[Semana 4])","v":0},{"$f":"SUBTOTAL(109,Maio[[Horas extras   ]])","v":0},{"$f":"SUBTOTAL(109,Maio[Semana 5])","v":0},{"$f":"SUBTOTAL(109,Maio[[Horas extras    ]])","v":0}]
[null,"Total de maio: Horas normais",{"$f":"SUM(Maio[[#Totals],[Semana 1]],Maio[[#Totals],[Semana 2]],Maio[[#Totals],[Semana 3]],Maio[[#Totals],[Semana 4]],Maio[[#Totals],[Semana 5]])","v":0},"Total de maio: Horas extras",null,{"$f":"SUM(Maio[[#Totals],[Horas extras]],Maio[[#Totals],[Horas extras ]],Maio[[#Totals],[Horas extras  ]],Maio[[#Totals],[Horas extras   ]],Maio[[#Totals],[Horas extras    ]])","v":0}]
[]
[null,"Junho","Semana 1","Horas extras","Semana 2","Horas extras ","Semana 3","Horas extras  ","Semana 4","Horas extras   ","Semana 5","Horas extras    "]
[null,"Segunda"]
[null,"Terça-feira"]
[null,"Quarta-feira"]
[null,"Quinta-feira"]
[null,"Sexta-feira"]
[null,"Sábado"]
[null,"Domingo"]
[null,"Total de horas semanal",{"$f":"SUBTOTAL(109,Junho[Semana 1])","v":0},{"$f":"SUBTOTAL(109,Junho[Horas extras])","v":0},{"$f":"SUBTOTAL(109,Junho[Semana 2])","v":0},{"$f":"SUBTOTAL(109,Junho[[Horas extras ]])","v":0},{"$f":"SUBTOTAL(109,Junho[Semana 3])","v":0},{"$f":"SUBTOTAL(109,Junho[[Horas extras  ]])","v":0},{"$f":"SUBTOTAL(109,Junho[Semana 4])","v":0},{"$f":"SUBTOTAL(109,Junho[[Horas extras   ]])","v":0},{"$f":"SUBTOTAL(109,Junho[Semana 5])","v":0},{"$f":"SUBTOTAL(109,Junho[[Horas extras    ]])","v":0}]
[null,"Total de junho: Horas normais",{"$f":"SUM(Junho[[#Totals],[Semana 1]],Junho[[#Totals],[Semana 2]],Junho[[#Totals],[Semana 3]],Junho[[#Totals],[Semana 4]],Junho[[#Totals],[Semana 5]])","v":0},"Total de junho: Horas extras",null,{"$f":"SUM(Junho[[#Totals],[Horas extras]],Junho[[#Totals],[Horas extras ]],Junho[[#Totals],[Horas extras  ]],Junho[[#Totals],[Horas extras   ]],Junho[[#Totals],[Horas extras    ]])","v":0}]
[]
[null,"Julho, agosto, setembro      Cartão de ponto do funcionário: Diário, semanal, mensal, anual"]
[null,"Julho","Semana 1","Horas extras","Semana 2","Horas extras ","Semana 3","Horas extras  ","Semana 4","Horas extras   ","Semana 5","Horas extras    "]
[null,"Segunda"]
[null,"Terça-feira"]
[null,"Quarta-feira"]
[null,"Quinta-feira"]
[null,"Sexta-feira"]
[null,"Sábado"]
[null,"Domingo"]
[null,"Total de horas semanal",{"$f":"SUBTOTAL(109,Julho[Semana 1])","v":0},{"$f":"SUBTOTAL(109,Julho[Horas extras])","v":0},{"$f":"SUBTOTAL(109,Julho[Semana 2])","v":0},{"$f":"SUBTOTAL(109,Julho[[Horas extras ]])","v":0},{"$f":"SUBTOTAL(109,Julho[Semana 3])","v":0},{"$f":"SUBTOTAL(109,Julho[[Horas extras  ]])","v":0},{"$f":"SUBTOTAL(109,Julho[Semana 4])","v":0},{"$f":"SUBTOTAL(109,Julho[[Horas extras   ]])","v":0},{"$f":"SUBTOTAL(109,Julho[Semana 5])","v":0},{"$f":"SUBTOTAL(109,Julho[[Horas extras    ]])","v":0}]
[null,"Total de julho: Horas normais",{"$f":"SUM(Julho[[#Totals],[Semana 1]],Julho[[#Totals],[Semana 2]],Julho[[#Totals],[Semana 3]],Julho[[#Totals],[Semana 4]],Julho[[#Totals],[Semana 5]])","v":0},"Total de julho: Horas extras",null,{"$f":"SUM(Julho[[#Totals],[Horas extras]],Julho[[#Totals],[Horas extras ]],Julho[[#Totals],[Horas extras  ]],Julho[[#Totals],[Horas extras   ]],Julho[[#Totals],[Horas extras    ]])","v":0}]
[]
[null,"Agosto","Semana 1","Horas extras","Semana 2","Horas extras ","Semana 3","Horas extras  ","Semana 4","Horas extras   ","Semana 5","Horas extras    "]
[null,"Segunda"]
[null,"Terça-feira"]
[null,"Quarta-feira"]
[null,"Quinta-feira"]
[null,"Sexta-feira"]
[null,"Sábado"]
[null,"Domingo"]
[null,"Total de horas semanal",{"$f":"SUBTOTAL(109,Agosto[Semana 1])","v":0},{"$f":"SUBTOTAL(109,Agosto[Horas extras])","v":0},{"$f":"SUBTOTAL(109,Agosto[Semana 2])","v":0},{"$f":"SUBTOTAL(109,Agosto[[Horas extras ]])","v":0},{"$f":"SUBTOTAL(109,Agosto[Semana 3])","v":0},{"$f":"SUBTOTAL(109,Agosto[[Horas extras  ]])","v":0},{"$f":"SUBTOTAL(109,Agosto[Semana 4])","v":0},{"$f":"SUBTOTAL(109,Agosto[[Horas extras   ]])","v":0},{"$f":"SUBTOTAL(109,Agosto[Semana 5])","v":0},{"$f":"SUBTOTAL(109,Agosto[[Horas extras    ]])","v":0}]
[null,"Total de agosto: Horas normais",{"$f":"SUM(Agosto[[#Totals],[Semana 1]],Agosto[[#Totals],[Semana 2]],Agosto[[#Totals],[Semana 3]],Agosto[[#Totals],[Semana 4]],Agosto[[#Totals],[Semana 5]])","v":0},"Total de agosto: Horas extras",null,{"$f":"SUM(Agosto[[#Totals],[Horas extras]],Agosto[[#Totals],[Horas extras ]],Agosto[[#Totals],[Horas extras  ]],Agosto[[#Totals],[Horas extras   ]],Agosto[[#Totals],[Horas extras    ]])","v":0}]
[]
[null,"Setembro","Semana 1","Horas extras","Semana 2","Horas extras ","Semana 3","Horas extras  ","Semana 4","Horas extras   ","Semana 5","Horas extras    "]
[null,"Segunda"]
[null,"Terça-feira"]
[null,"Quarta-feira"]
[null,"Quinta-feira"]
[null,"Sexta-feira"]
[null,"Sábado"]
[null,"Domingo"]
[null,"Total de horas semanal",{"$f":"SUBTOTAL(109,Setembro[Semana 1])","v":0},{"$f":"SUBTOTAL(109,Setembro[Horas extras])","v":0},{"$f":"SUBTOTAL(109,Setembro[Semana 2])","v":0},{"$f":"SUBTOTAL(109,Setembro[[Horas extras ]])","v":0},{"$f":"SUBTOTAL(109,Setembro[Semana 3])","v":0},{"$f":"SUBTOTAL(109,Setembro[[Horas extras  ]])","v":0},{"$f":"SUBTOTAL(109,Setembro[Semana 4])","v":0},{"$f":"SUBTOTAL(109,Setembro[[Horas extras   ]])","v":0},{"$f":"SUBTOTAL(109,Setembro[Semana 5])","v":0},{"$f":"SUBTOTAL(109,Setembro[[Horas extras    ]])","v":0}]
[null,"Total de setembro: Horas normais",{"$f":"SUM(Setembro[[#Totals],[Semana 1]],Setembro[[#Totals],[Semana 2]],Setembro[[#Totals],[Semana 3]],Setembro[[#Totals],[Semana 4]],Setembro[[#Totals],[Semana 5]])","v":0},"Total de setembro: Horas extras",null,{"$f":"SUM(Setembro[[#Totals],[Horas extras]],Setembro[[#Totals],[Horas extras ]],Setembro[[#Totals],[Horas extras  ]],Setembro[[#Totals],[Horas extras   ]],Setembro[[#Totals],[Horas extras    ]])","v":0}]
[]
[null,"Outubro, novembro, dezembro      Cartão de ponto do funcionário: Diário, semanal, mensal, anual"]
[null,"Outubro","Semana 1","Horas extras","Semana 2","Horas extras ","Semana 3","Horas extras  ","Semana 4","Horas extras   ","Semana 5","Horas extras    "]
[null,"Segunda"]
[null,"Terça-feira"]
[null,"Quarta-feira"]
[null,"Quinta-feira"]
[null,"Sexta-feira"]
[null,"Sábado"]
[null,"Domingo"]
[null,"Total de horas semanal",{"$f":"SUBTOTAL(109,Outubro[Semana 1])","v":0},{"$f":"SUBTOTAL(109,Outubro[Horas extras])","v":0},{"$f":"SUBTOTAL(109,Outubro[Semana 2])","v":0},{"$f":"SUBTOTAL(109,Outubro[[Horas extras ]])","v":0},{"$f":"SUBTOTAL(109,Outubro[Semana 3])","v":0},{"$f":"SUBTOTAL(109,Outubro[[Horas extras  ]])","v":0},{"$f":"SUBTOTAL(109,Outubro[Semana 4])","v":0},{"$f":"SUBTOTAL(109,Outubro[[Horas extras   ]])","v":0},{"$f":"SUBTOTAL(109,Outubro[Semana 5])","v":0},{"$f":"SUBTOTAL(109,Outubro[[Horas extras    ]])","v":0}]
[null,"Total de outubro: Horas normais",{"$f":"SUM(Outubro[[#Totals],[Semana 1]],Outubro[[#Totals],[Semana 2]],Outubro[[#Totals],[Semana 3]],Outubro[[#Totals],[Semana 4]],Outubro[[#Totals],[Semana 5]])","v":0},"Total de outubro: Horas extras",null,{"$f":"SUM(Outubro[[#Totals],[Horas extras]],Outubro[[#Totals],[Horas extras ]],Outubro[[#Totals],[Horas extras  ]],Outubro[[#Totals],[Horas extras   ]],Outubro[[#Totals],[Horas extras    ]])","v":0}]
[]
[null,"Novembro","Semana 1","Horas extras","Semana 2","Horas extras ","Semana 3","Horas extras  ","Semana 4","Horas extras   ","Semana 5","Horas extras    "]
[null,"Segunda"]
[null,"Terça-feira"]
[null,"Quarta-feira"]
[null,"Quinta-feira"]
[null,"Sexta-feira"]
[null,"Sábado"]
[null,"Domingo"]
[null,"Total de horas semanal",{"$f":"SUBTOTAL(109,Novembro[Semana 1])","v":0},{"$f":"SUBTOTAL(109,Novembro[Horas extras])","v":0},{"$f":"SUBTOTAL(109,Novembro[Semana 2])","v":0},{"$f":"SUBTOTAL(109,Novembro[[Horas extras ]])","v":0},{"$f":"SUBTOTAL(109,Novembro[Semana 3])","v":0},{"$f":"SUBTOTAL(109,Novembro[[Horas extras  ]])","v":0},{"$f":"SUBTOTAL(109,Novembro[Semana 4])","v":0},{"$f":"SUBTOTAL(109,Novembro[[Horas extras   ]])","v":0},{"$f":"SUBTOTAL(109,Novembro[Semana 5])","v":0},{"$f":"SUBTOTAL(109,Novembro[[Horas extras    ]])","v":0}]
[null,"Total de novembro: Horas normais",{"$f":"SUM(Novembro[[#Totals],[Semana 1]],Novembro[[#Totals],[Semana 2]],Novembro[[#Totals],[Semana 3]],Novembro[[#Totals],[Semana 4]],Novembro[[#Totals],[Semana 5]])","v":0},"Total de novembro: Horas extras",null,{"$f":"SUM(Novembro[[#Totals],[Horas extras]],Novembro[[#Totals],[Horas extras ]],Novembro[[#Totals],[Horas extras  ]],Novembro[[#Totals],[Horas extras   ]],Novembro[[#Totals],[Horas extras    ]])","v":0}]
[]
[null,"Dezembro","Semana 1","Horas extras","Semana 2","Horas extras ","Semana 3","Horas extras  ","Semana 4","Horas extras   ","Semana 5","Horas extras    "]
[null,"Segunda"]
[null,"Terça-feira"]
[null,"Quarta-feira"]
[null,"Quinta-feira"]
[null,"Sexta-feira"]
[null,"Sábado"]
[null,"Domingo"]
[null,"Total de horas semanal",{"$f":"SUBTOTAL(109,Dezembro[Semana 1])","v":0},{"$f":"SUBTOTAL(109,Dezembro[Horas extras])","v":0},{"$f":"SUBTOTAL(105,Dezembro[Semana 2])","v":0},{"$f":"SUBTOTAL(109,Dezembro[[Horas extras ]])","v":0},{"$f":"SUBTOTAL(109,Dezembro[Semana 3])","v":0},{"$f":"SUBTOTAL(109,Dezembro[[Horas extras  ]])","v":0},{"$f":"SUBTOTAL(109,Dezembro[Semana 4])","v":0},{"$f":"SUBTOTAL(109,Dezembro[[Horas extras   ]])","v":0},{"$f":"SUBTOTAL(109,Dezembro[Semana 5])","v":0},{"$f":"SUBTOTAL(109,Dezembro[[Horas extras    ]])","v":0}]
[null,"Total de dezembro: Horas normais",{"$f":"SUM(Dezembro[[#Totals],[Semana 1]],Dezembro[[#Totals],[Semana 2]],Dezembro[[#Totals],[Semana 3]],Dezembro[[#Totals],[Semana 4]],Dezembro[[#Totals],[Semana 5]])","v":0},"Total de dezembro: Horas extras",null,{"$f":"SUM(Dezembro[[#Totals],[Horas extras]],Dezembro[[#Totals],[Horas extras ]],Dezembro[[#Totals],[Horas extras  ]],Dezembro[[#Totals],[Horas extras   ]],Dezembro[[#Totals],[Horas extras    ]])","v":0}]